bitfinex/quotes_BTCUSD_20251113
["timestamp","ask_amount","ask_price","bid_price","bid_amount"]
[1763006496518,2.3362,102160.0,102150.0,0.2643205]
[1763006496741,2.35438572,102160.0,102150.0,0.2643205]
[1763006496988,2.35438572,102160.0,102150.0,0.2242705]
[1763006497212,2.35438516,102160.0,102150.0,0.2242705]
[1763006497877,2.37541516,102160.0,102150.0,0.2242705]
[1763006498744,2.37541516,102160.0,102150.0,0.1967905]
[1763006498958,2.83048773,102160.0,102150.0,0.1967905]
[1763006499177,2.39644516,102160.0,102150.0,0.1967905]
[1763006499633,2.39644516,102160.0,102120.0,0.20571927]
[1763006499634,2.523,102130.0,102120.0,0.20571927]
[1763006499858,2.36221516,102130.0,102120.0,0.20571927]
[1763006500093,2.81728773,102130.0,102120.0,0.20571927]
[1763006500504,2.81728773,102130.0,102120.0,8e-05]
[1763006500739,2.91570808,102130.0,102120.0,8e-05]
[1763006500961,2.91584834,102130.0,102120.0,8e-05]
[1763006501597,2.89766318,102130.0,102120.0,0.19592802]
[1763006501812,2.91580603,102130.0,102120.0,8e-05]
[1763006502032,2.91580603,102130.0,102120.0,0.00304937]
[1763006502267,2.81738568,102130.0,102120.0,0.00304937]
[1763006502490,2.81738568,102130.0,102120.0,0.00404937]
[1763006502743,3.01738568,102130.0,102120.0,0.00404937]
[1763006502950,3.01683839,102130.0,102120.0,0.00404937]
[1763006503396,3.18586447,102130.0,102120.0,0.00404937]
[1763006503609,3.1785933,102130.0,102120.0,0.00404937]
[1763006504059,2.85614059,102130.0,102120.0,0.00404937]
[1763006504292,2.85614059,102130.0,102090.0,0.20564618]
[1763006504293,0.2,102110.0,102090.0,0.20564618]
[1763006504517,2.46290257,102100.0,102090.0,0.20564618]
[1763006504746,2.48393257,102100.0,102090.0,0.20564618]
[1763006505414,2.0,102090.0,102080.0,0.19783707]
[1763006505631,2.47610257,102090.0,102080.0,0.19783707]
[1763006506284,2.04206,102090.0,102080.0,0.19783707]
[1763006506502,2.47610257,102090.0,102080.0,0.19783707]
[1763006506720,2.47610257,102090.0,102080.0,0.29326707]
[1763006506721,2.00014016,102090.0,102080.0,0.29326707]
[1763006506937,2.00014016,102090.0,102080.0,0.23788707]
[1763006507365,2.00014016,102090.0,102080.0,0.29326707]
[1763006507581,2.00014016,102090.0,102080.0,0.23788707]
[1763006507797,2.00014016,102090.0,102080.0,0.29426707]
[1763006507798,0.00014016,102090.0,102080.0,0.29426707]
[1763006508055,0.00014016,102090.0,102080.0,0.38231677]
[1763006508463,0.74312227,102120.0,102110.0,0.1958672]
[1763006508682,2.3090797,102120.0,102110.0,0.19633731]
[1763006508900,2.5562685,102120.0,102110.0,0.19633731]
[1763006509169,2.08799593,102120.0,102110.0,0.26486731]
[1763006509600,2.08999593,102120.0,102110.0,0.32024731]
[1763006509819,1.87085477,102120.0,102110.0,0.26486731]
[1763006510042,2.2,102130.0,102120.0,0.19584802]
[1763006510251,2.64724257,102130.0,102120.0,0.19584802]
[1763006510464,2.66044257,102130.0,102120.0,0.19584802]
[1763006510679,2.501,102120.0,102110.0,0.19633731]
[1763006510898,2.0274,102120.0,102110.0,0.19633731]
[1763006511112,2.0274,102120.0,102110.0,0.00047011]
[1763006511113,2.98344257,102120.0,102110.0,0.00047011]
[1763006511327,3.00335839,102120.0,102110.0,0.00047011]
[1763006511540,3.56340772,102120.0,102110.0,0.00047011]
[1763006511754,3.10944933,102120.0,102110.0,0.00047011]
[1763006511981,3.12936515,102120.0,102110.0,0.00047011]
[1763006512393,3.56440772,102120.0,102110.0,0.00047011]
[1763006512606,3.0319448,102120.0,102110.0,0.00047011]
[1763006512824,3.46598737,102120.0,102110.0,0.00047011]
[1763006513308,3.46798737,102120.0,102110.0,0.00047011]
[1763006513588,3.46693637,102120.0,102110.0,0.00047011]
[1763006513847,0.323,102090.0,102080.0,0.20771458]
[1763006514064,2.85824127,102090.0,102080.0,0.20771458]
[1763006514302,0.2,102080.0,102060.0,0.00489655]
[1763006514530,2.78339157,102070.0,102060.0,0.20099927]
[1763006515001,0.2132,102080.0,102070.0,0.19594396]
[1763006515002,1.999949,102080.0,102070.0,0.19594396]
[1763006515245,1.999949,102080.0,102070.0,0.31985396]
[1763006515509,2.43399157,102090.0,102080.0,0.19592476]
[1763006515722,1.999949,102090.0,102080.0,0.19592476]
[1763006516365,2.000949,102090.0,102080.0,0.29135476]
[1763006516577,1.999949,102090.0,102080.0,0.29135476]
[1763006517659,1.49677451,102090.0,102080.0,0.29135476]
[1763006517863,0.5132,102130.0,102120.0,0.19584802]
[1763006518086,2.91115227,102130.0,102120.0,0.19584802]
[1763006518302,2.1276797,102130.0,102120.0,0.19584802]
[1763006518509,2.56172227,102130.0,102120.0,0.19584802]
[1763006518940,2.88572227,102130.0,102120.0,0.19584802]
[1763006519146,2.56286306,102130.0,102120.0,0.19584802]
[1763006519365,2.88686306,102130.0,102120.0,0.19584802]
[1763006519575,2.45282049,102130.0,102120.0,0.19584802]
[1763006519981,2.47925049,102130.0,102120.0,0.19584802]
[1763006520192,2.45182049,102130.0,102120.0,0.19584802]
[1763006520440,2.47825049,102130.0,102120.0,0.19584802]
[1763006520680,2.35552469,102130.0,102120.0,0.30805802]
[1763006520899,2.34232469,102130.0,102120.0,0.30805802]
[1763006521107,2.00114079,102130.0,102120.0,0.30805802]
[1763006521528,2.00114079,102130.0,102120.0,0.39610772]
[1763006522171,2.00014079,102130.0,102120.0,0.39610772]
[1763006523008,2.00014079,102130.0,102120.0,0.30805802]
[1763006523473,2.01833048,102130.0,102120.0,0.30805802]
[1763006524635,2.32294514,102120.0,102110.0,0.1958672]
[1763006524865,3.09709821,102120.0,102110.0,0.1958672]
[1763006525087,1.99994514,102110.0,102100.0,0.20566407]
[1763006525314,2.50096226,102110.0,102100.0,0.20566407]
[1763006525729,2.52200255,102110.0,102100.0,0.20566407]
[1763006525951,2.08795998,102110.0,102100.0,0.20566407]
[1763006526177,0.01824455,102110.0,102100.0,0.31703407]
[1763006526403,0.50014079,102130.0,102120.0,0.19584802]
[1763006526404,2.62750111,102130.0,102120.0,0.19584802]
[1763006526623,2.62750111,102130.0,102120.0,0.30721802]
[1763006526624,2.01840369,102130.0,102120.0,0.30721802]
[1763006527541,0.01840369,102130.0,102120.0,0.30721802]
[1763006527769,0.00014079,102130.0,102120.0,0.30721802]
[1763006527985,0.00014079,102130.0,102120.0,0.39526772]
[1763006528455,0.01841214,102130.0,102120.0,0.30721802]
[1763006528668,0.01841214,102130.0,102120.0,0.24005802]
[1763006528885,0.01841214,102130.0,102120.0,0.30721802]
[1763006529104,0.01841214,102130.0,102120.0,0.35063676]
[1763006529313,0.01841214,102130.0,102120.0,0.43868646]
[1763006529934,0.00014079,102130.0,102120.0,0.43868646]
[1763006530146,0.00014079,102130.0,102120.0,0.43968646]
[1763006530353,0.01841531,102130.0,102120.0,0.43968646]
[1763006530557,0.00014079,102130.0,102120.0,0.43968646]
[1763006530763,1.99994626,102150.0,102140.0,0.27332967]
[1763006530965,2.03926927,102150.0,102140.0,0.27332967]
[1763006531186,2.01821576,102150.0,102140.0,0.34048967]
[1763006531417,0.0182695,102150.0,102140.0,0.34048967]
[1763006531853,0.0182695,102150.0,102140.0,0.47195811]
[1763006532302,0.52104371,102160.0,102140.0,0.47195811]
[1763006532303,2.0,102170.0,102160.0,0.19577133]
[1763006532520,0.00014077,102170.0,102160.0,0.23998133]
[1763006532727,2.44742334,102170.0,102160.0,0.23998133]
[1763006533158,2.77042334,102170.0,102160.0,0.23998133]
[1763006533360,2.79144429,102170.0,102160.0,0.19577133]
[1763006533783,2.82698429,102170.0,102160.0,0.19577133]
[1763006533990,2.80596334,102170.0,102160.0,0.19577133]
[1763006534370,2.86251323,102170.0,102160.0,0.19577133]
[1763006534592,2.82697323,102170.0,102160.0,0.19577133]
[1763006535019,2.39293066,102170.0,102160.0,0.19577133]
[1763006535228,2.82697323,102170.0,102160.0,0.19577133]
[1763006535426,2.79143323,102170.0,102160.0,0.19577133]
[1763006535853,2.34404206,102170.0,102160.0,0.30714133]
[1763006535990,2.00003217,102170.0,102160.0,0.30714133]
[1763006537013,2.01327217,102170.0,102160.0,0.23998133]
[1763006537408,2.01327217,102170.0,102160.0,0.19577133]
[1763006537409,2.80585474,102170.0,102160.0,0.19577133]
[1763006537614,2.323,102160.0,102150.0,0.19577389]
[1763006537815,2.79091257,102160.0,102150.0,0.19577389]
[1763006538042,2.82645257,102160.0,102150.0,0.19577389]
[1763006538707,2.84745373,102160.0,102150.0,0.19577389]
[1763006538902,2.81191373,102160.0,102150.0,0.19577389]
[1763006540096,2.48891373,102160.0,102150.0,0.19577389]
[1763006541276,2.46791257,102160.0,102150.0,0.19577389]
[1763006541483,2.4889152,102160.0,102150.0,0.19577389]
[1763006542109,2.8474552,102160.0,102150.0,0.19577389]
[1763006542975,2.8119152,102160.0,102140.0,0.04310048]
[1763006543194,2.55606859,102140.0,102130.0,0.19581217]
[1763006543406,2.55606859,102140.0,102120.0,0.20564042]
[1763006543407,3.04667005,102140.0,102120.0,0.20564042]
[1763006543618,3.04667005,102140.0,102110.0,0.19609828]
[1763006543619,1.99917859,102120.0,102110.0,0.19609828]
[1763006543886,2.99013116,102120.0,102110.0,0.19611482]
[1763006544105,2.63089784,102120.0,102110.0,0.19611482]
[1763006544337,3.06494041,102120.0,102110.0,0.00024762]
[1763006544551,3.09214855,102120.0,102110.0,0.00024762]
[1763006544764,3.09214855,102120.0,102110.0,0.19622342]
[1763006544984,3.09214855,102120.0,102110.0,0.00035622]
[1763006544985,3.0740727,102120.0,102110.0,0.00035622]
[1763006545277,3.10032599,102120.0,102110.0,0.00035622]
[1763006545503,3.16366055,102120.0,102110.0,0.00035622]
[1763006545706,3.20066818,102120.0,102110.0,0.00035622]
[1763006546141,3.17502061,102120.0,102110.0,0.19622342]
[1763006546349,3.11282599,102120.0,102110.0,0.19622342]
[1763006546588,3.0510327,102120.0,102110.0,0.19622342]
[1763006546814,2.40749013,102120.0,102110.0,0.19622342]
[1763006547022,2.36444784,102120.0,102110.0,0.19622342]
[1763006547228,2.39841784,102120.0,102110.0,0.19622342]
[1763006547442,2.86643041,102120.0,102110.0,0.19622342]
[1763006547663,2.36439411,102120.0,102110.0,0.24043342]
[1763006547935,1.99912486,102120.0,102110.0,0.30759342]
[1763006548149,2.2,102140.0,102130.0,0.19582884]
[1763006548355,2.2,102140.0,102130.0,0.22913884]
[1763006548356,2.67336096,102140.0,102130.0,0.22913884]
[1763006548562,2.99636096,102140.0,102130.0,0.22913884]
[1763006548773,2.03931839,102140.0,102130.0,0.22913884]
[1763006548984,2.03931839,102140.0,102130.0,0.34050884]
[1763006549209,2.01816352,102140.0,102130.0,0.34050884]
[1763006549426,2.04989143,102140.0,102130.0,0.34050884]
[1763006549782,2.05089143,102140.0,102130.0,0.34050884]
[1763006549990,2.05089143,102140.0,102130.0,0.27334884]
[1763006550630,2.05289143,102140.0,102130.0,0.27334884]
[1763006550834,2.05089143,102140.0,102130.0,0.34092884]
[1763006551440,2.04989143,102140.0,102130.0,0.34092884]
[1763006551632,2.04989143,102140.0,102130.0,0.27334884]
[1763006551832,2.37389143,102140.0,102130.0,0.27334884]
[1763006552266,2.37289143,102140.0,102130.0,0.27334884]
[1763006552479,2.37289143,102140.0,102130.0,0.22913884]
[1763006552684,2.37289143,102140.0,102130.0,0.19582884]
[1763006552685,2.840904,102140.0,102130.0,0.19582884]
[1763006553899,2.84074052,102140.0,102130.0,0.19582884]
[1763006554986,2.75245659,102140.0,102130.0,0.19582884]
[1763006555708,2.80747948,102140.0,102130.0,0.19582884]
[1763006556050,2.82575793,102140.0,102130.0,0.19582884]
[1763006556449,2.77350948,102140.0,102130.0,0.19582884]
[1763006557445,2.80747948,102140.0,102130.0,0.19582884]
[1763006557651,2.82575871,102140.0,102130.0,0.19582884]
[1763006558286,2.77350948,102140.0,102130.0,0.19582884]
[1763006558430,2.37272795,102140.0,102130.0,0.34542884]
[1763006559077,2.37264678,102140.0,102130.0,0.34542884]
[1763006559239,2.18076822,102140.0,102130.0,0.34542884]
[1763006559450,2.373,102140.0,102130.0,0.34542884]
[1763006559682,0.373,102140.0,102130.0,0.34542884]
[1763006559883,0.05,102140.0,102130.0,0.34542884]
[1763006561129,3.21875864,102140.0,102130.0,0.27784884]
[1763006561332,2.71875864,102140.0,102130.0,0.27784884]
[1763006561538,2.75272864,102140.0,102130.0,0.19582884]
[1763006561916,2.98669864,102140.0,102130.0,0.19582884]
[1763006562380,3.0077557,102140.0,102130.0,0.19582884]
[1763006562602,2.6463089,102140.0,102130.0,0.19582884]
[1763006562820,2.75272864,102140.0,102130.0,0.19582884]
[1763006563261,2.77379042,102140.0,102130.0,0.23059884]
[1763006563502,2.79207574,102140.0,102130.0,0.23059884]
[1763006563928,2.77379042,102140.0,102130.0,0.23059884]
[1763006564343,2.79207576,102140.0,102130.0,0.23059884]
[1763006564574,2.79180261,102140.0,102130.0,0.23059884]
[1763006565660,2.79180261,102140.0,102130.0,0.19582884]
[1763006565897,2.99180261,102140.0,102130.0,0.19582884]
[1763006566143,2.97074083,102140.0,102130.0,0.19582884]
[1763006568300,2.99182907,102140.0,102130.0,0.19582884]
[1763006568702,0.323,102130.0,102120.0,0.19584802]
[1763006568906,2.82474834,102130.0,102120.0,0.19584802]
[1763006569135,2.86415023,102130.0,102120.0,0.19584802]
[1763006569893,2.86415023,102130.0,102120.0,0.19684802]
[1763006570115,2.83018023,102130.0,102120.0,0.19684802]
[1763006570453,2.86515023,102130.0,102120.0,0.19684802]
[1763006570668,2.86515023,102130.0,102120.0,0.19584802]
[1763006570899,2.86615023,102130.0,102120.0,0.19584802]
[1763006571900,2.86571253,102130.0,102120.0,0.19584802]
[1763006572471,2.0,102120.0,102110.0,0.20601678]
[1763006572822,2.45311403,102120.0,102110.0,0.20601678]
[1763006574246,2.65311403,102120.0,102110.0,0.19622342]
[1763006574443,2.63478808,102120.0,102110.0,0.19622342]
[1763006575440,2.63551493,102120.0,102110.0,0.19622342]
[1763006575563,2.42536933,102120.0,102110.0,0.19622342]
[1763006575963,2.44370268,102120.0,102110.0,0.19622342]
[1763006576955,2.44373367,102120.0,102110.0,0.19622342]
[1763006578010,3.14157787,102120.0,102110.0,0.00035622]
[1763006578847,3.14157515,102120.0,102110.0,0.00035622]
[1763006579059,3.14156815,102120.0,102110.0,0.00035622]
[1763006579265,3.36875514,102120.0,102110.0,0.00035622]
[1763006579473,3.39514692,102120.0,102110.0,0.00035622]
[1763006580101,3.36795993,102120.0,102110.0,0.00035622]
[1763006580309,2.33433989,102100.0,102090.0,0.2009698]
[1763006580526,2.38903332,102100.0,102090.0,0.20111059]
[1763006580745,2.78385809,102100.0,102090.0,0.00014079]
[1763006580962,3.05610213,102100.0,102090.0,0.00014079]
[1763006581170,3.02891514,102100.0,102090.0,0.00014079]
[1763006581402,3.00899932,102100.0,102090.0,0.19604636]
[1763006581610,2.78260754,102100.0,102090.0,0.19704636]
[1763006581820,2.73036227,102100.0,102090.0,0.19704636]
[1763006582029,2.76394227,102100.0,102090.0,0.19704636]
[1763006582917,2.76594227,102100.0,102090.0,0.00014079]
[1763006583125,2.89343118,102100.0,102090.0,0.00014079]
[1763006583335,2.89543118,102100.0,102090.0,0.00014079]
[1763006583542,2.92182296,102100.0,102090.0,0.00014079]
[1763006583755,2.91982296,102100.0,102090.0,0.00014079]
[1763006583995,2.31158125,102070.0,102060.0,0.2008597]
[1763006584205,2.4060105,102070.0,102060.0,0.00503671]
[1763006584413,2.78245786,102070.0,102060.0,0.20099986]
[1763006585117,2.88087821,102070.0,102060.0,0.00503671]
[1763006585330,2.90079403,102070.0,102060.0,0.00503671]
[1763006585538,2.80237368,102070.0,102060.0,0.20099986]
[1763006585754,2.78245786,102070.0,102060.0,0.00503671]
[1763006585968,2.80237368,102070.0,102060.0,0.00503671]
[1763006586200,2.80237368,102070.0,102060.0,0.00627546]
[1763006586423,2.80237368,102070.0,102040.0,0.19634853]
[1763006586424,2.39963095,102050.0,102040.0,0.0004]
[1763006586635,2.84956804,102050.0,102040.0,0.0004]
[1763006586860,2.84956804,102050.0,102040.0,0.19640156]
[1763006586861,2.2714894,102050.0,102040.0,0.19640156]
[1763006587076,2.57785007,102050.0,102040.0,0.19640156]
[1763006587696,2.57885007,102050.0,102040.0,0.19640156]
[1763006588333,2.83418293,102050.0,102040.0,0.19640156]
[1763006588551,2.87233109,102050.0,102040.0,0.19640156]
[1763006588763,2.87233109,102050.0,102040.0,0.0004]
[1763006588987,3.11574983,102050.0,102040.0,0.0004]
[1763006589199,2.85241527,102050.0,102040.0,0.19640156]
[1763006589823,2.82009527,102050.0,102040.0,0.19640156]
[1763006590281,2.85241527,102050.0,102040.0,0.19640156]
[1763006590899,2.95083562,102050.0,102040.0,0.0004]
[1763006591328,3.15083562,102050.0,102040.0,0.0004]
[1763006591550,3.17075144,102050.0,102040.0,0.0004]
[1763006591788,0.2,102030.0,102020.0,0.00172949]
[1763006592001,3.10040061,102030.0,102020.0,0.00172949]
[1763006592217,3.1599076,102030.0,102020.0,0.00172949]
[1763006592472,3.1599076,102030.0,102020.0,0.00272113]
[1763006592473,3.25137573,102030.0,102020.0,0.00272113]
[1763006592902,3.31395338,102030.0,102020.0,0.00272113]
[1763006593167,3.32395337,102030.0,102020.0,1.13e-06]
[1763006593369,2.53149707,102010.0,102000.0,10.19647843]
[1763006593581,3.04724126,102010.0,102000.0,10.19647843]
[1763006593788,3.07956126,102010.0,102000.0,10.19647843]
[1763006594213,3.10674825,102010.0,102000.0,10.19647843]
[1763006594416,3.10674825,102010.0,102000.0,10.0004]
[1763006594620,3.07970163,102010.0,102000.0,10.19647843]
[1763006594829,3.05978581,102010.0,102000.0,10.0004]
[1763006595037,3.05978581,102010.0,102000.0,10.19647843]
[1763006595445,3.05978581,102010.0,102000.0,10.0004]
[1763006595658,3.42746027,102010.0,102000.0,10.0004]
[1763006595865,3.42946027,102010.0,102000.0,10.0004]
[1763006596293,3.47287901,102010.0,102000.0,9.74896046]
[1763006596507,3.52603451,102010.0,102000.0,9.67934648]
[1763006596711,3.52603451,102010.0,102000.0,7.46870562]
[1763006596712,3.55511455,102010.0,102000.0,7.46870562]
[1763006596913,3.50195905,102010.0,102000.0,7.43924889]
[1763006597120,3.50195905,102010.0,102000.0,7.40979216]
[1763006597502,3.53176177,102010.0,102000.0,7.40979216]
[1763006597732,3.55511455,102010.0,102000.0,7.40979216]
[1763006598055,3.52531183,102010.0,102000.0,7.40979216]
[1763006598257,3.52531183,102010.0,102000.0,7.38033543]
[1763006598459,3.53176177,102010.0,102000.0,7.38033543]
[1763006598688,3.55511455,102010.0,102000.0,7.3508787]
[1763006598877,3.55511455,102010.0,102000.0,7.29246125]
[1763006598878,3.60130878,102010.0,102000.0,7.29246125]
[1763006599273,3.59730878,102010.0,102000.0,7.23354779]
[1763006599475,3.79336798,102010.0,102000.0,6.83447339]
[1763006599678,0.88143946,101930.0,101920.0,0.23068908]
[1763006599964,0.00341038,101920.0,101900.0,0.58510986]
[1763006600150,0.68526038,101920.0,101900.0,0.58510986]
[1763006600363,0.208904,101920.0,101910.0,0.35446952]
[1763006600562,0.03232,101950.0,101940.0,0.19619383]
[1763006600793,0.25934274,101950.0,101940.0,0.19619383]
[1763006600986,0.00014025,101950.0,101940.0,0.31021383]
[1763006601168,0.00014025,101950.0,101940.0,0.24015383]
[1763006601391,0.00014025,101950.0,101940.0,0.31021383]
[1763006601763,0.00014025,101950.0,101940.0,0.65597247]
[1763006601965,0.00014025,101950.0,101940.0,0.74119103]
[1763006602373,0.03232,101970.0,101960.0,0.19615535]
[1763006602576,0.241224,101980.0,101970.0,0.19611966]
[1763006602776,0.25933789,101980.0,101970.0,0.19611966]
[1763006603155,0.25933789,101980.0,101970.0,0.23062966]
[1763006603353,0.96041653,101980.0,101970.0,0.19611966]
[1763006603554,0.58233789,101980.0,101970.0,0.19611966]
[1763006603753,0.58233789,101980.0,101970.0,0.24007966]
[1763006603964,0.58233789,101980.0,101970.0,0.31013966]
[1763006604166,0.58233789,101980.0,101970.0,0.36624789]
[1763006604587,0.55001789,101980.0,101970.0,0.36624789]
[1763006604792,0.55101789,101980.0,101970.0,0.31113966]
[1763006605080,0.001,101980.0,101970.0,0.6568983]
[1763006605384,1e-08,101980.0,101970.0,0.744948]
[1763006605549,0.208904,101990.0,101980.0,0.19611688]
[1763006605754,0.208904,102020.0,102010.0,0.1960592]
[1763006605918,0.2270287,102020.0,102010.0,0.2305692]
[1763006606120,0.0181247,102020.0,102010.0,0.2745292]
[1763006606360,0.0181247,102020.0,102010.0,0.3445892]
[1763006606361,0.3411247,102020.0,102010.0,0.3445892]
[1763006606519,0.0181247,102020.0,102010.0,0.3445892]
[1763006606733,0.0181247,102020.0,102010.0,0.43668118]
[1763006606939,0.00014087,102020.0,102010.0,0.78243982]
[1763006607339,1e-08,102020.0,102010.0,0.78243982]
[1763006607932,1e-08,102020.0,102010.0,0.87148952]
[1763006608348,1e-08,102020.0,102010.0,0.91490826]
[1763006608552,1e-08,102020.0,102010.0,0.91590826]
[1763006608754,1e-08,102030.0,102020.0,0.31005999]
[1763006608953,1e-08,102030.0,102020.0,0.40894987]
[1763006609355,1e-08,102030.0,102020.0,0.75470851]
[1763006609759,1e-08,102030.0,102020.0,0.40894987]
[1763006610140,0.2270802,102030.0,102020.0,0.33888987]
[1763006610303,0.2270802,102030.0,102020.0,0.34188987]
[1763006610304,0.0181762,102030.0,102020.0,0.34188987]
[1763006610535,0.20890401,102030.0,102020.0,0.34188987]
[1763006610707,0.0181762,102030.0,102020.0,0.34188987]
[1763006610911,0.2270802,102030.0,102020.0,0.19950952]
[1763006611086,0.22709256,102030.0,102020.0,0.19950952]
[1763006611301,0.28709256,102030.0,102020.0,0.19950952]
[1763006611533,0.28709256,102030.0,102020.0,0.19750952]
[1763006611746,0.07818856,102030.0,102020.0,0.32660159]
[1763006611954,0.07818856,102030.0,102020.0,0.41725159]
[1763006612359,0.07818856,102030.0,102020.0,0.26059159]
[1763006612563,0.28709256,102030.0,102020.0,0.26059159]
[1763006612778,0.33659256,102030.0,102020.0,0.19950952]
[1763006613189,0.33708256,102030.0,102020.0,0.19950952]
[1763006613421,1.0058412,102030.0,102020.0,0.00346953]
[1763006613643,1.02682282,102030.0,102020.0,0.19950952]
[1763006613857,1.02682282,102030.0,102020.0,0.00346953]
[1763006614306,1.02682282,102030.0,102020.0,0.00246953]
[1763006614518,1.02682282,102030.0,102020.0,0.00046953]
[1763006614735,1.04773864,102030.0,102020.0,0.00046953]
[1763006614944,0.28809256,102030.0,102020.0,0.69892816]
[1763006615199,0.07918856,102030.0,102020.0,0.79734851]
[1763006615424,0.07918856,102030.0,102020.0,0.45158987]
[1763006615654,0.07918856,102030.0,102020.0,0.84076725]
[1763006615895,0.06100001,102030.0,102020.0,0.79734851]
[1763006616120,0.07921879,102030.0,102020.0,0.79734851]
[1763006616325,0.06000001,102030.0,102020.0,0.79834851]
[1763006616530,1e-08,102030.0,102020.0,0.79834851]
[1763006616738,1e-08,102030.0,102020.0,0.84276725]
[1763006616957,0.01821798,102030.0,102020.0,0.93230127]
[1763006617176,1e-08,102030.0,102020.0,0.93230127]
[1763006617395,0.208904,102050.0,102040.0,0.19600156]
[1763006617605,0.22711998,102050.0,102040.0,0.23520379]
[1763006617808,0.22711998,102050.0,102040.0,0.39186379]
[1763006618004,0.22761568,102050.0,102040.0,0.39186379]
[1763006619439,0.22760838,102050.0,102040.0,0.39186379]
[1763006619657,0.22760838,102050.0,102040.0,0.39286379]
[1763006619868,0.22860838,102050.0,102040.0,0.39286379]
[1763006620004,0.22760838,102050.0,102040.0,0.39286379]
[1763006621116,0.01870438,102050.0,102040.0,0.82815645]
[1763006621253,0.01870438,102050.0,102040.0,0.87157519]
[1763006621459,0.0004957,102050.0,102040.0,0.87157519]
[1763006621858,1e-08,102050.0,102040.0,0.87157519]
[1763006622157,1e-08,102050.0,102040.0,0.87057519]
[1763006622383,1e-08,102050.0,102040.0,0.43528253]
[1763006622564,1e-08,102050.0,102040.0,0.87257519]
[1763006622761,1e-08,102050.0,102040.0,0.87457519]
[1763006625126,0.02104416,102080.0,102070.0,0.24143396]
[1763006625333,0.35226,102090.0,102080.0,0.19592476]
[1763006625334,3.21405266,102090.0,102080.0,0.19592476]
[1763006625497,3.05521872,102090.0,102080.0,0.19592476]
[1763006625700,2.0,102080.0,102070.0,0.24423101]
[1763006625905,0.01816606,102080.0,102070.0,0.28972101]
[1763006626267,1.03754266,102090.0,102080.0,0.19592476]
[1763006626268,3.03705266,102090.0,102080.0,0.19592476]
[1763006626470,2.62006185,102090.0,102080.0,0.24448934]
[1763006626674,3.05584451,102090.0,102080.0,0.24448934]
[1763006627554,3.05784451,102090.0,102080.0,0.04856458]
[1763006627963,3.05884451,102090.0,102080.0,0.04856458]
[1763006628180,3.05884451,102090.0,102080.0,0.19592476]
[1763006629970,3.05884451,102090.0,102060.0,0.2512347]
[1763006629971,2.0,102080.0,102060.0,0.2512347]
[1763006630393,2.82595367,102080.0,102070.0,0.19594396]
[1763006630601,0.00314084,102090.0,102080.0,0.19592476]
[1763006630807,0.00014084,102090.0,102080.0,0.92971651]
[1763006631741,1e-08,102090.0,102080.0,0.92971651]
[1763006632590,0.00200001,102090.0,102080.0,0.92971651]
[1763006632939,1e-08,102090.0,102080.0,0.45100511]
[1763006633364,1e-08,102090.0,102080.0,0.45400511]
[1763006633927,1e-08,102090.0,102080.0,0.88929777]
[1763006634142,1e-08,102090.0,102080.0,0.93271651]
[1763006638775,1e-08,102090.0,102080.0,0.49742385]
[1763006639075,1e-08,102090.0,102080.0,0.93271651]
[1763006639891,1e-08,102090.0,102080.0,0.49742385]
[1763006640123,1e-08,102090.0,102080.0,0.50742384]
[1763006640332,1e-08,102090.0,102080.0,0.49742385]
[1763006640750,1e-08,102090.0,102080.0,0.45200511]
[1763006641139,1e-08,102090.0,102080.0,0.49842385]
[1763006641343,2.02926001,102090.0,102080.0,0.19992476]
[1763006641529,2.02975001,102090.0,102080.0,0.19892476]
[1763006641790,2.52926001,102090.0,102080.0,0.26549476]
[1763006641999,2.52926001,102090.0,102080.0,0.26749476]
[1763006642000,2.02926001,102090.0,102080.0,0.26749476]
[1763006642234,2.71454267,102090.0,102080.0,0.19592476]
[1763006642453,2.51405267,102090.0,102080.0,0.19592476]
[1763006642651,2.0,102080.0,102070.0,0.24143396]
[1763006642880,2.06724975,102080.0,102070.0,0.25490683]
[1763006643065,2.06724975,102080.0,102060.0,0.2057447]
[1763006643066,2.523,102070.0,102060.0,0.2057447]
[1763006643311,2.84754024,102070.0,102060.0,0.2057447]
[1763006643507,3.04754024,102070.0,102060.0,0.00979815]
[1763006643716,3.04754024,102070.0,102050.0,0.25230933]
[1763006643717,2.0,102060.0,102050.0,0.25230933]
[1763006643920,2.06724975,102060.0,102050.0,0.25450064]
[1763006646338,2.03929932,102060.0,102050.0,0.25450064]
[1763006646558,2.01823975,102060.0,102050.0,0.41461064]
[1763006646982,0.01823975,102060.0,102050.0,0.8499033]
[1763006647192,0.01823975,102060.0,102050.0,0.41461064]
[1763006647394,0.01823975,102060.0,102050.0,0.98137174]
[1763006648446,0.02105814,102080.0,102070.0,0.19594396]
[1763006648659,2.57331814,102090.0,102080.0,0.19592476]
[1763006648979,2.54405814,102090.0,102080.0,0.35603476]
[1763006649146,2.58246265,102090.0,102080.0,0.19592476]
[1763006649770,2.57331814,102090.0,102080.0,0.19592476]
[1763006649963,3.06725608,102090.0,102080.0,0.19592476]
[1763006650150,3.06725608,102090.0,102070.0,0.280933]
[1763006650151,3.09548177,102090.0,102070.0,0.235133]
[1763006650354,2.48479266,102080.0,102070.0,0.19594396]
[1763006650571,2.5058508,102080.0,102070.0,0.19594396]
[1763006650777,2.07055814,102080.0,102070.0,0.19594396]
[1763006651170,2.07970772,102080.0,102070.0,0.19594396]
[1763006651369,2.40270772,102080.0,102070.0,0.19594396]
[1763006651574,2.83800038,102080.0,102070.0,0.19594396]
[1763006651880,2.35320772,102080.0,102070.0,0.19594396]
[1763006652082,2.35320772,102080.0,102070.0,0.25871396]
[1763006652493,2.35320772,102080.0,102070.0,0.19594396]
[1763006652494,2.34603814,102080.0,102070.0,0.19594396]
[1763006652699,2.86523671,102080.0,102060.0,0.2057446]
[1763006652897,2.86523671,102080.0,102050.0,0.20574933]
[1763006652898,2.48480266,102070.0,102050.0,0.20574933]
[1763006653195,2.00049,102060.0,102050.0,0.26023842]
[1763006653389,2.02154814,102060.0,102050.0,0.26023842]
[1763006653592,2.02154814,102060.0,102050.0,0.26164152]
[1763006654829,2.02154814,102060.0,102050.0,0.26264152]
[1763006655430,2.02154814,102060.0,102050.0,0.26364152]
[1763006658732,2.02105814,102060.0,102050.0,0.32641152]
[1763006658875,2.02202814,102060.0,102050.0,0.26364152]
[1763006659392,2.00097,102060.0,102050.0,0.26364152]
[1763006659763,2.02203533,102060.0,102050.0,0.26364152]
[1763006660469,2.02203533,102060.0,102050.0,0.42375152]
[1763006660470,2.01828508,102060.0,102050.0,0.42375152]
[1763006660720,0.01828508,102060.0,102050.0,0.42375152]
[1763006661889,0.5210621,102080.0,102070.0,0.19594396]
[1763006662111,2.36234562,102080.0,102070.0,0.34370299]
[1763006662318,2.03934562,102080.0,102070.0,0.34370299]
[1763006662525,2.01828352,102080.0,102070.0,0.44104299]
[1763006664151,2.001,102080.0,102070.0,0.44104299]
[1763006665033,0.001,102080.0,102070.0,0.44104299]
[1763006665469,2.323,102090.0,102080.0,0.19592476]